Cogmind - Beta 16 @@@ ROGUE MODE // 2026.02.03 @ 20:18:31 Player: eb Result: Destroyed by PQ-12K(R) with Subdweller Laser Performance ------------- Evolutions (0) 0 Regions Visited (2) 400 Robots Destroyed (18) 90 Value Destroyed (439) 439 Prototype IDs (2) 40 Alien Tech Used (0) 0 Bonus (-40) -40 TOTAL SCORE: 929 Bonus ------- Friendly Fire -40 Cogmind --------- Core Integrity 0/250 Matter 300/300 Energy 170/170 System Corruption 4% Temperature Cool (15) Movement Walking (190) Ox1 Location -10/Subcaves Parts ------- > --- POWER (1) -------- Makeshift Power Source > --- PROPULSION (2) --- Aluminum Leg > --- UTILITY (2) ------ Signal Interpreter Terrain Scanner > --- WEAPON (2) ------- Subdweller Laser Makeshift Sword > --- INVENTORY (5) ---- Light Ion Engine Makeshift Leg Heavy Assault Rifle Heavy Assault Rifle Makeshift Shrapnel Gun Peak State ------------ > --- POWER ------------ Makeshift Power Source > --- PROPULSION ------- Aluminum Leg Aluminum Leg > --- UTILITY ---------- Signal Interpreter Terrain Scanner > --- WEAPON ----------- Subdweller Laser Makeshift Sword > --- INVENTORY -------- Light Ion Engine Makeshift Leg Heavy Assault Rifle Heavy Assault Rifle Heavy Assault Rifle [Rating: 15] Favorites ----------- Power Ion Engine Engine Ion Engine Propulsion Light Treads Treads Light Treads Leg Aluminum Leg Utility Small Storage Unit Device Terrain Scanner Storage Small Storage Unit Processor Signal Interpreter Weapon Heavy Assault Rifle Energy Gun EM Pulse Gun Ballistic Gun Heavy Assault Rifle Slashing Weapon Makeshift Sword Build | -11 -10 -10 ------- Run | Yrd Mat Sub Slots Evolved . | . . . Power . | . . . Propulsion . | . . . Utility . | . . . Weapon . | . . . Parts Attached 20 | 6 11 3 Power 3 | 1 1 1 Engine 3 | 1 1 1 Core . | . . . Reactor . | . . . Propulsion 5 | 2 3 . Treads 3 | 2 1 . Leg 2 | . 2 . Wheel . | . . . Hover . | . . . Flight . | . . . Utility 4 | 1 3 . Device 1 | . 1 . Storage 1 | 1 . . Processor 2 | . 2 . Hackware . | . . . Protection . | . . . Artifact . | . . . Weapon 8 | 2 4 2 Energy Gun 2 | 1 . 1 Energy Cannon . | . . . Ballistic Gun 5 | 1 4 . Ballistic Cannon . | . . . Launcher . | . . . Special Weapon . | . . . Impact Weapon . | . . . Slashing Weapon 1 | . . 1 Piercing Weapon . | . . . Special Melee Weapon . | . . . Unidentified Prototypes . | . . . Parts Lost 1 | . 1 . Power . | . . . Propulsion . | . . . Utility . | . . . Weapon 1 | . 1 . Highest Loss Streak 1 | . 1 . To Critical Strikes . | . . . Average Backups 6 | 2 7 5 Power . | . . 1 Propulsion 1 | 1 2 1 Utility 1 | . 1 . Weapon 2 | . 2 3 Tool/Special . | . . . Unused Backups 15 | . 9 6 Power 3 | . 3 . Propulsion 3 | . 1 2 Utility 3 | . 3 . Weapon 6 | . 2 4 Tool/Special . | . . . Average Slot Usage (%) 94 | . 93 99 Engine 14 | . 14 14 Treads 21 | . 27 . Leg 6 | . . 28 Device 7 | . 5 14 Storage 9 | . 12 . Processor 5 | . 3 14 Energy Gun 4 | . 2 12 Ballistic Gun 20 | . 24 3 Slashing Weapon 2 | . . 12 Peak Build Rating 15 | 6 11 15 Average Rating 8 | 5 8 14 On Entrance 5 | . 6 9 Avg Prop Armor Cover (%) . | . . . Naked Turns . | . . . Heaviest Build 17 | 14 17 13 Greatest Support 40 | 40 40 20 Greatest Overweight (x) . | . . . Average Overweight (x) . | . . . Largest Inventory Capacity 8 | 8 8 5 Average Capacity 7 | 7 7 5 Most Carried 8 | 5 8 5 Average Carried 6 | 3 7 4 Final Capacity 8 | 8 5 5 Final Carried 5 | 5 5 5 Class Distribution -------------------- 83% | Mutant 16% | Scavenger-Mutant Dominant Class ---------------- Mutant | -10/Materials Scavenger-Mutant | -10/Subcaves Resources | -11 -10 -10 ----------- Run | Yrd Mat Sub Matter Collected 749 | 224 436 89 Remotely . | . . . Salvage Created 620 | 28 435 157 Parts 42 | 2 24 16 Haulers Intercepted . | . . . Recyclers Shooed 3 | . 3 . Parts Field Recycled . | . . . Retrieved Matter . | . . . Parts Self-Destructed 13 | . . 13 Prevented . | . . . Parts Restored . | . . . Kills | -11 -10 -10 ------- Run | Yrd Mat Sub Combat Hostiles Destroyed 15 | . 12 3 Melee 1 | . . 1 Guns 13 | . 11 2 AOE 1 | . 1 . Classes Destroyed 7 | 1 4 2 Tunneler 1 | 1 . . Recycler 1 | . 1 . Watcher 1 | . 1 . Swarmer 6 | . 6 . Grunt 6 | . 6 . Subdweller 3 | . . 3 Scientist 1 | . . 1 Best Kill Streak 3 | 1 3 2 Combat Bots Only 3 | . 3 2 Max Kills in Single Turn 1 | 1 1 1 Gunslinging . | . . . Exploded 1 | . 1 . Melee 1 | . . 1 Uniques/NPCs Destroyed . | . . . Combat | -11 -10 -10 -------- Run | Yrd Mat Sub Hostile Shots Fired 101 | . 68 33 Missed 26 | . 16 10 Hits 75 | . 52 23 Projectile 75 | . 52 23 Critical Strikes 5 | . 5 . Damage Taken 1086 | . 575 511 Core 264 | . 64 200 Absorbed by Shields . | . . . Core Remaining (%) 100 | 100 . . Volleys Fired 59 | 4 45 10 Largest 2 | 2 2 2 Hottest 60 | 60 60 60 Shots Fired 116 | 8 90 18 Gun 116 | 8 90 18 Cannon . | . . . Launcher . | . . . Special . | . . . Kinetic 96 | 4 80 12 Thermal 6 | . . 6 Explosive . | . . . Electromagnetic 14 | 4 10 . Robot Hit Streak 9 | 5 6 9 Robot Miss Streak 3 | 3 3 2 Penetration Max . | . . . Secondary Targets 2 | . 2 . Max Gunslinging Chain 1 | . 1 . Shots Hit Robots 79 | 5 56 18 Core Hits 29 | 1 23 5 Critical Kills 1 | . 1 . Critical Parts Destroyed 1 | . 1 . Critical Strikes 3 | . 3 . Destroy 2 | . 2 . Corrupt 1 | . 1 . Melee Attacks 13 | . . 13 Impact . | . . . Slashing 13 | . . 13 Piercing . | . . . Sneak Attacks . | . . . Combat Hostiles . | . . . Follow-up Attacks . | . . . Damage Inflicted 1307 | 37 816 454 Guns 907 | 37 711 159 Cannons . | . . . Explosions 96 | . 96 . Melee 295 | . . 295 Ramming 9 | . 9 . Kinetic 774 | 24 611 139 Thermal 116 | . 96 20 Explosive . | . . . Electromagnetic 113 | 13 100 . Impact . | . . . Slashing 295 | . . 295 Piercing . | . . . Highest Corruption 4 | . 4 4 Average Corruption 3 | . 3 4 Corruption Purged . | . . . Corruption Blocked . | . . . Effects 33 | . 19 14 Message Errors 5 | . 2 3 Matter Fused 6 | . 4 2 Heat Flow Errors 6 | . 4 2 Energy Discharges 7 | . 4 3 Parts Rejected 3 | . 2 1 Data Loss (minor) 1 | . 1 . Data Loss (major) 1 | . . 1 Misfires 3 | . 1 2 Weapon Failures 1 | . 1 . Overload Shots . | . . . Overflow Damage . | . . . Projectiles . | . . . Explosions . | . . . Melee . | . . . Knockbacks . | . . . Impact . | . . . Kinetic . | . . . Secondary . | . . . Self-Inflicted Damage . | . . . Shots . | . . . Rammed 7 | . 7 . Targets Rammed 7 | . 7 . Kicked . | . . . Crushed . | . . . Highest Temperature 225 | . 225 197 Average Temperature 90 | . 89 102 Received Heat Transfer 390 | . 264 126 Siege Activations . | . . . Martial Activations . | . . . Shielding Activations . | . . . Robots Disrupted . | . . . Combat Hostiles . | . . . Robots Corrupted 1 | . 1 . Combat Hostiles . | . . . Parts Fried 2 | . 2 . Impact Corruptions . | . . . Robots Melted . | . . . Combat Hostiles . | . . . Parts Melted . | . . . Heat Transferred 125 | . 100 25 Parts Sabotaged . | . . . Parts Stolen . | . . . Parts Stripped . | . . . Power Chain Reactions 1 | . 1 . Alert | -11 -10 -10 ------- Run | Yrd Mat Sub Maximum Alert Level . | . . . Low Security (%) 100 | 100 100 . Level 1 . | . . . Level 2 . | . . . Level 3 . | . . . Level 4 . | . . . Level 5 . | . . . High Security . | . . . Max Security . | . . . Peak Influence 90 | 5 90 . Initial . | . . . Average 19 | . 21 . Influence Increases 313 | 5 308 . Destroy 0b10 Robot/C 240 | . 240 . Destroy 0b10 Robot/NC 15 | 5 10 . Destroy Leader 42 | . 42 . Successful Hack 14 | . 14 . Destroy Structure 2 | . 2 . Influence Decreases 313 | 5 287 21 Entered New Map 11 | . . 11 Time Decay 292 | 5 277 10 Lost Part 10 | . 10 . Squads Dispatched . | . . . Investigation . | . . . Extermination . | . . . Reinforcement . | . . . Assault . | . . . Garrison . | . . . Intercept . | . . . Searches Triggered . | . . . Construction Impeded . | . . . Haulers Reinforced . | . . . Active Scanning Responses . | . . . Cargo Convoy Interrupts . | . . . Stealth | -11 -10 -10 --------- Run | Yrd Mat Sub Distress Signals 1 | . 1 . Communications Jammed . | . . . Distress Signals . | . . . Times Spotted 28 | . 22 6 Peak Tracking Total 4 | . 4 4 Tactical Retreats 1 | . 1 . Traps | -11 -10 -10 ------- Run | Yrd Mat Sub Traps Triggered 2 | . 2 . Indirectly . | . . . Trap Hack Attempts . | . . . Triggered . | . . . Disarmed . | . . . Reprogrammed . | . . . Reused . | . . . Traps Extracted . | . . . Installed . | . . . Triggered . | . . . Machines | -11 -10 -10 ---------- Run | Yrd Mat Sub Machines Disabled . | . . . Max in Single Turn . | . . . Machines Repaired . | . . . Machines Dismantled . | . . . Machines Sabotaged . | . . . Overloaded Fab Kills . | . . . Hacking | -11 -10 -10 --------- Run | Yrd Mat Sub Machines Accessed 3 | . 3 . Terminals 3 | . 3 . Fabricators . | . . . Repair Stations . | . . . Recycling Units . | . . . Scanalyzers . | . . . Garrison Access . | . . . Total Hacks 6 | . 6 . Successful 3 | . 3 . Failed 3 | . 3 . Catastrophic . | . . . Database Lockouts . | . . . Manual 1 | . 1 . Terminals 6 | . 6 . Fabricators . | . . . Repair Stations . | . . . Recycling Units . | . . . Scanalyzers . | . . . Garrison Access . | . . . Terminal Hacks 3 | . 3 . Prototype ID Bank 1 | . 1 . Locate Traps 1 | . 1 . Hauler Manifests 1 | . 1 . Fabricator Hacks . | . . . Repair Station Hacks . | . . . Recycling Unit Hacks . | . . . Scanalyzer . | . . . Garrison Access Hacks . | . . . Unauthorized Hacks . | . . . Terminals . | . . . Fabricators . | . . . Repair Stations . | . . . Recycling Units . | . . . Scanalyzers . | . . . Garrison Access . | . . . Data Cores Recovered . | . . . Used . | . . . Hacking Detections 3 | . 3 . Full Trace Events . | . . . Feedback Events . | . . . Feedback Blocked . | . . . Robot Schematics Acquired . | . . . Robots Built . | . . . Authchips . | . . . Time . | . . . Total Robot Build Rating . | . . . Part Schematics Acquired . | . . . Parts Built . | . . . Authchips . | . . . Time . | . . . Total Part Build Rating . | . . . Part Studies Acquired . | . . . Parts Repaired . | . . . Time . | . . . Parts Recycled . | . . . Recycled Matter . | . . . Retrieved Matter . | . . . Retrieved Components . | . . . Parts Scanalyzed . | . . . Part Schematics Acquired . | . . . Parts Damaged . | . . . Bothacking | -11 -10 -10 ------------ Run | Yrd Mat Sub Used RIF Installer . | . . . Robots Hacked . | . . . Non-combat . | . . . Combat . | . . . Robot Hacks Applied . | . . . Relay Couplers Released . | . . . Fabnet Peak Effective % . | . . . Robots Rewired . | . . . Allies Hacked . | . . . Hacks Repelled . | . . . Allies | -11 -10 -10 -------- Run | Yrd Mat Sub Total Allies . | . . . Largest Group . | . . . Highest-Rated Group . | . . . Highest-Rated Ally . | . . . Total Orders . | . . . Ally Attacks . | . . . Total Damage . | . . . Kills . | . . . Allies Corrupted . | . . . Allies Melted . | . . . Intel | -11 -10 -10 ------- Run | Yrd Mat Sub Active Infowar (turns) 1162 | . 815 347 Optics 213 | . 213 . Terrain 949 | . 602 347 Robot Analysis Total . | . . . Derelict Logs Recovered . | . . . Drone Launches . | . . . Drone Recoveries . | . . . Exploration | -11 -10 -10 ------------- Run | Yrd Mat Sub Turns Passed 1970 | 150 1473 347 Spaces Moved 1122 | 80 805 237 Core 3 | 3 . . Treads 849 | 77 772 . Legs 270 | . 33 237 Wheels . | . . . Hover . | . . . Flight . | . . . Fastest Speed 50 | 50 120 120 Average Speed 150 | 155 158 120 Slowest Speed 160 | 160 160 120 Overloaded Moves . | . . . Propulsion Burnouts . | . . . Robots Hopped . | . . . Potential Cave-ins . | . . . Cave-ins Triggered . | . . . Exploration Rate (%) 39 | 5 97 17 Regions Visited 2 Branch Regions 1 Pre-discovered Areas . | . . . Known Exits Taken 1 | . 1 . Unknown Exits Taken 1 | 1 . . Scrap Searched . | . . . Spaces Dug . | . . . Terrain Destroyed 2 | . 2 . Melee . | . . . Projectile . | . . . AOE 2 | . 2 . Terrain Rammed . | . . . Walls Destroyed . | . . . Machines Disabled . | . . . Actions | -11 -10 -10 --------- Run | Yrd Mat Sub Total 1282 | 94 916 272 Wait 15 | . 13 2 Move 1120 | 79 804 237 Hop . | . . . Pick Up 25 | 5 18 2 Fast Attach 13 | 6 5 2 Attach 2 | . 2 . Detach . | . . . Swap 6 | . 5 1 Drop 22 | . 17 5 Fire 59 | 4 45 10 Melee 13 | . . 13 Ram . | . . . Kick . | . . . Crush 7 | . 7 . Escape Stasis . | . . . Rewire . | . . . Trap . | . . . Miscellaneous . | . . . Route ------- -11/Scrapyard -10/Materials (discovered 5 exits: [*Mat x3] / [*Min] / *Sub) -10/Subcaves History --------- Turn | Location | Event 67 | -11/Scrapyard | Discovered new exit (range 15) 151 | -11/Scrapyard | Entered Materials 304 | -10/Materials | Build established: Mutant 506 | -10/Materials | Discovered new exit (range 3) 699 | -10/Materials | Discovered new exit (range 14) 892 | -10/Materials | Discovered new exit (range 15) 1300 | -10/Materials | Discovered new exit (range 16) 1305 | -10/Materials | Discovered new exit (range 11) 1351 | -10/Materials | Derelicts attacked the area 1623 | -10/Materials | Identified exit to Subcaves 1624 | -10/Materials | Entered Subcaves 1625 | -10/Subcaves | Approached by a straggling Scientist 1958 | -10/Subcaves | Core integrity fell below 50% 1966 | -10/Subcaves | Build established: Scavenger-Mutant 1968 | -10/Subcaves | Core integrity fell below 20% 1971 | -10/Subcaves | Destroyed by PQ-12K(R) with Subdweller Laser Last Messages --------------- 01802_ System corrupted: FCS attempts to trigger Sub. Laser. 01802_ System corrupted: Sub. Laser misfires. 62-4ZP(c): "I think it's somewhere north of here" 01831_ |/9ZGDD2B0P92SKGVG>DDX